bitfinex-derivatives/quotes_SOLF0:USTF0_20250712
["timestamp","ask_amount","ask_price","bid_price","bid_amount"]
[1752329575861,190.38,160.43,160.4,3.37]
[1752329576056,3.38,160.42,160.4,3.37]
[1752329576758,3.38,160.42,160.41,3.37]
[1752329576959,3.38,160.42,160.38,5.07785382]
[1752329576960,538.48,160.48,160.4,5.07785382]
[1752329577161,3.38,160.42,160.4,11.31065382]
[1752329577465,3.38,160.44,160.41,3.37]
[1752329577664,3.38,160.43,160.41,3.37]
[1752329577968,3.38,160.43,160.41,9.6023]
[1752329578670,3.38,160.43,160.39,3.37]
[1752329578863,3.38,160.43,160.37,8.4459617]
[1752329579269,6.232,160.43,160.38,6.2333]
[1752329579458,190.18,160.44,160.37,5.0759617]
[1752329579764,196.4114,160.44,160.39,9.603]
[1752329580070,3.38,160.41,160.39,3.37]
[1752329581269,3.38,160.4,160.39,3.37]
[1752329581768,190.18,160.44,160.39,3.37]
[1752329581965,3.38,160.41,160.39,3.37]
[1752329582364,3.38,160.41,160.4,3.37]
[1752329582563,190.18,160.44,160.4,3.37]
[1752329582761,3.38,160.43,160.4,3.37]
[1752329583363,3.38,160.43,160.39,9.6031]
[1752329583567,3.38,160.42,160.4,3.37]
[1752329583968,3.38,160.42,160.4,9.6028]
[1752329584373,189.74,160.43,160.4,9.6028]
[1752329584573,3.38,160.41,160.4,9.6028]
[1752329584772,3.38,160.41,160.38,3.37]
[1752329585068,3.38,160.41,160.39,3.37]
[1752329585371,3.38,160.41,160.39,9.6032]
[1752329585576,3.04625906,160.47,160.39,3.37]
[1752329585768,192.98,160.46,160.39,3.37]
[1752329585965,3.38,160.43,160.4,3.37]
[1752329586766,3.38,160.42,160.4,12.64895906]
[1752329586972,192.86,160.42,160.41,3.37]
[1752329587969,6.2311,160.45,160.41,3.37]
[1752329588174,189.42,160.43,160.41,6.2323]
[1752329588375,192.8,160.43,160.42,3.37]
[1752329588974,3.38,160.42,160.41,3.37]
[1752329589972,3.38,160.41,160.39,3.37]
[1752329590275,189.28,160.43,160.38,3.04625906]
[1752329590479,3.38,160.42,160.39,3.37]
[1752329590674,3.38,160.41,160.4,3.37]
[1752329591975,192.66,160.43,160.4,6.41625906]
[1752329592177,192.66,160.43,160.4,3.04625906]
[1752329592381,192.66,160.43,160.41,3.37]
[1752329592679,3.38,160.42,160.41,3.37]
[1752329595077,3.38,160.42,160.39,3.08558094]
[1752329595078,3.54,160.41,160.4,3.6]
[1752329595479,3.54,160.41,160.39,0.03932188]
[1752329595677,3.54,160.4,160.39,3.63932188]
[1752329595882,188.78,160.4,160.39,3.63932188]
[1752329596182,3.54,160.42,160.4,3.6]
[1752329596384,192.28,160.41,160.4,3.6]
[1752329597176,21.82660389,160.46,160.39,0.03932188]
[1752329597177,3.54,160.4,160.39,3.63932188]
[1752329597378,3.54,160.4,160.39,9.87252188]
[1752329597379,188.66,160.4,160.39,9.87252188]
[1752329597787,188.64,160.41,160.39,6.27252188]
[1752329597978,538.48,160.48,160.39,6.27252188]
[1752329597979,6.95860246,160.57,160.4,6.09320778]
[1752329598182,3.54,160.55,160.45,5.16230714]
[1752329598482,6.2305,160.46,160.42,3.28]
[1752329598673,6.2305,160.46,160.4,3.28]
[1752329598674,3.54,160.45,160.4,3.28]
[1752329598876,3.54,160.45,160.38,6.32660389]
[1752329599079,3.54,160.45,160.39,6.45374226]
[1752329599284,3.54,160.43,160.4,6.45374226]
[1752329599476,3.54,160.43,160.36,8.20891103]
[1752329599477,189.96,160.42,160.36,6.32660389]
[1752329599677,3.54,160.41,160.36,6.32660389]
[1752329599877,3.54,160.41,160.37,3.28]
[1752329600580,3.54,160.41,160.36,9.28080389]
[1752329600782,3.54,160.43,160.4,5.0751917]
[1752329601086,3.54,160.43,160.41,3.28]
[1752329601589,3.54,160.42,160.41,3.28]
[1752329602077,196.1311,160.45,160.41,3.28]
[1752329602388,3.54,160.42,160.38,3.28]
[1752329602580,3.54,160.41,160.39,3.28]
[1752329602783,189.9,160.45,160.36,5.0751917]
[1752329602984,3.54,160.44,160.37,3.28]
[1752329603291,3.54,160.4,160.37,3.28]
[1752329603484,3.54,160.39,160.37,3.28]
[1752329604186,3.54,160.38,160.37,3.28]
[1752329604587,3.54,160.38,160.34,3.28]
[1752329604787,3.54,160.38,160.32,3.28]
[1752329605185,5.0751917,160.37,160.29,3.28]
[1752329605384,3.54,160.36,160.29,3.28]
[1752329605592,6.2354,160.34,160.29,3.28]
[1752329605796,3.54,160.33,160.29,3.28]
[1752329606088,5.0751917,160.33,160.27,3.28]
[1752329606395,3.54,160.3,160.25,3.28]
[1752329606584,6.2374,160.29,160.23,3.28]
[1752329606786,6.2374,160.29,160.28,0.04799246]
[1752329606984,190.62,160.33,160.28,0.04799246]
[1752329607187,5.0751917,160.32,160.23,3.28]
[1752329607388,3.54,160.29,160.23,3.28]
[1752329607889,3.54,160.29,160.26,0.04127569]
[1752329608086,3.54,160.28,160.26,0.04127569]
[1752329609086,3.54,160.28,160.21,3.28]
[1752329609287,190.5,160.28,160.21,8.36862759]
[1752329609592,6.2381,160.27,160.21,14.60852759]
[1752329609786,3.54,160.26,160.22,3.28]
[1752329610388,3.54,160.26,160.21,6.2399]
[1752329610588,3.54,160.26,160.21,9.5199]
[1752329610789,9.7783,160.26,160.21,9.5199]
[1752329611095,3.58758789,160.25,160.21,3.28]
[1752329611292,3.58758789,160.25,160.19,3.28]
[1752329611492,3.58758789,160.25,160.17,3.28]
[1752329611694,3.54,160.23,160.17,3.28]
[1752329612185,0.03981999,160.22,160.17,9.5215]
[1752329612387,3.57981999,160.22,160.18,3.6]
[1752329612584,3.57981999,160.22,160.19,3.6]
[1752329613387,3.54,160.21,160.19,3.6]
[1752329613592,3.54,160.21,160.2,3.6]
[1752329613995,3.54,160.19,160.18,3.6]
[1752329615394,3.54,160.19,160.16,9.8419]
[1752329615597,3.54,160.19,160.17,3.6]
[1752329615791,3.54,160.18,160.17,3.6]
[1752329616195,3.54,160.17,160.16,3.6]
[1752329616398,3.54,160.19,160.17,3.6]
[1752329616900,3.54,160.19,160.14,5.08862759]
[1752329617202,0.04421265,160.2,160.18,9.8414]
[1752329617402,0.04421265,160.2,160.19,3.6]
[1752329617698,3.58421265,160.2,160.19,3.6]
[1752329618399,0.04421265,160.2,160.19,3.6]
[1752329618995,3.58421265,160.2,160.19,3.6]
[1752329619299,3.58421265,160.2,160.18,3.6]
[1752329619495,3.58421265,160.2,160.19,3.6]
[1752329620095,0.04421265,160.2,160.19,3.6]
[1752329621701,0.04421265,160.2,160.19,9.841]
[1752329623900,0.04421265,160.2,160.19,3.6]
[1752329624108,3.58421265,160.2,160.19,3.6]
[1752329627210,3.58421265,160.2,160.12,3.5]
[1752329627405,3.57,160.19,160.16,3.5]
[1752329628312,3.57,160.18,160.17,3.5]
[1752329630116,3.57,160.17,160.15,3.5]
[1752329630310,3.57,160.17,160.16,3.5]
[1752329630712,0.04421265,160.2,160.16,3.5]
[1752329631015,0.04421265,160.2,160.15,5.08862759]
[1752329631212,6.2411,160.19,160.14,3.5]
[1752329631517,3.57,160.18,160.14,3.5]
[1752329631814,6.28704825,160.18,160.14,3.5]
[1752329632011,0.04554825,160.18,160.14,3.5]
[1752329632215,6.2424,160.16,160.14,3.5]
[1752329632410,9.8124,160.16,160.15,3.5]
[1752329632604,3.57,160.16,160.15,3.5]
[1752329632810,6.2419,160.17,160.16,3.5]
[1752329633005,9.8119,160.17,160.16,3.5]
[1752329633213,3.57,160.17,160.16,3.5]
[1752329633420,9.8118,160.17,160.16,3.5]
[1752329633616,3.57,160.17,160.16,3.5]
[1752329633813,0.04554825,160.18,160.16,3.5]
[1752329634422,0.04554825,160.18,160.16,5.08862759]
[1752329634611,0.04554825,160.18,160.17,3.5]
[1752329634807,0.04554825,160.18,160.17,6.55418263]
[1752329636407,3.57,160.17,160.08,3.5]
[1752329636609,6.2425,160.14,160.1,3.05418263]
[1752329636817,3.57,160.17,160.09,6.244]
[1752329636818,3.57,160.15,160.11,3.5]
[1752329637015,3.57,160.15,160.11,5.09482194]
[1752329637212,0.0428065,160.14,160.12,3.5]
[1752329637415,9.8127,160.13,160.12,3.5]
[1752329638315,6.2433,160.12,160.08,5.09482194]
[1752329638517,9.8133,160.12,160.11,3.5]
[1752329639120,3.57,160.1,160.05,5.09482194]
[1752329639320,3.57,160.1,160.09,3.5]
[1752329640818,0.0446699,160.11,160.06,3.5]
[1752329641018,3.57,160.1,160.03,220.0312576]
[1752329641214,5.09482194,160.1,160.05,3.5]
[1752329641419,8.66482194,160.1,160.01,8.59482194]
[1752329641627,6.2454,160.07,160.02,3.5]
[1752329641820,3.57,160.06,160.02,3.5]
[1752329642420,0.03972442,160.07,160.04,3.5]
[1752329642623,0.03972442,160.07,160.06,3.5]
[1752329642820,3.57,160.12,160.06,3.5]
[1752329643016,3.57,160.11,160.08,3.5]
[1752329643634,3.61387106,160.11,160.08,3.5]
[1752329643821,0.04387106,160.11,160.06,5.09482194]
[1752329644024,3.57,160.09,160.07,3.5]
[1752329644327,3.57,160.09,160.05,3.5]
[1752329644626,3.57,160.07,160.06,3.5]
[1752329644828,3.57,160.09,160.06,3.5]
[1752329645027,3.57,160.09,160.03,3.5]
[1752329645323,3.57,160.09,160.04,5.09482194]
[1752329645518,3.57,160.09,160.05,3.5]
[1752329645722,3.57,160.08,160.05,9.7457]
[1752329645923,3.57,160.08,160.06,3.5]
[1752329646231,3.57,160.08,160.07,3.5]
[1752329646633,3.57,160.08,160.05,9.7457]
[1752329646833,3.57,160.07,160.06,3.5]
[1752329647732,3.57,160.05,160.04,3.5]
[1752329648335,3.57,160.05,160.04,9.7462]
[1752329648527,3.57,160.05,160.04,3.5]
[1752329650331,0.04627098,160.06,160.04,6.2462]
[1752329650531,3.61627098,160.06,160.05,3.5]
[1752329651432,0.04627098,160.06,160.05,9.7458]
[1752329651635,0.04627098,160.06,160.05,14.84062194]
[1752329652036,3.61627098,160.06,160.05,3.5]
[1752329652533,0.04627098,160.06,160.05,9.7458]
[1752329654238,539.28,160.13,160.07,6.2447]
[1752329654437,3.57,160.11,160.06,3.5]
[1752329654739,6.2442,160.1,160.08,3.66]
[1752329654943,3.4,160.09,160.08,3.66]
[1752329655642,3.4,160.08,160.07,3.70675021]
[1752329656341,3.4,160.09,160.08,3.66]
[1752329657339,3.4,160.12,160.08,3.66]
[1752329657541,3.4,160.11,160.08,3.66]
[1752329657737,3.4,160.11,160.07,3.10520884]
[1752329657738,6.2437,160.11,160.09,3.66]
[1752329657939,3.4,160.1,160.09,3.66]
[1752329659346,3.4,160.1,160.09,9.9043]
[1752329660236,3.4,160.11,160.1,9.9037]
[1752329660941,3.4,160.11,160.1,3.66]
[1752329661144,3.4,160.1,160.07,3.10520884]
[1752329661339,3.4,160.1,160.09,3.66]
[1752329661539,3.4,160.1,160.07,0.04675021]
[1752329661740,3.4,160.09,160.07,0.04675021]
[1752329661938,3.4,160.08,160.07,3.70675021]
[1752329662438,191.1,160.1,160.07,3.70675021]
[1752329662633,193.9435,160.11,160.08,6.2443]
[1752329662837,3.4,160.09,160.08,9.9043]
[1752329663039,187.7,160.11,160.09,6.2443]
[1752329663248,187.7,160.11,160.09,9.9043]
[1752329663249,3.4,160.1,160.09,9.9043]
[1752329663638,3.4,160.1,160.07,0.04675021]
[1752329663639,3.4,160.1,160.07,3.70675021]
[1752329664234,3.4,160.09,160.08,3.66]
[1752329665040,3.4,160.1,160.08,3.66]
[1752329665538,3.4,160.1,160.09,9.904]
[1752329666037,3.4,160.1,160.08,3.66]
[1752329666235,3.4,160.1,160.07,0.04675021]
[1752329666438,3.4,160.1,160.07,3.70675021]
[1752329666646,9.644,160.1,160.07,3.70675021]
[1752329666939,3.4,160.09,160.07,3.70675021]
[1752329667147,3.4,160.08,160.07,3.70675021]
[1752329667343,3.4,160.08,160.07,9.95165021]
[1752329668041,3.4,160.1,160.07,6.29165021]
[1752329668249,3.4,160.1,160.08,3.66]
[1752329668438,3.4,160.09,160.08,3.66]
[1752329668946,3.4,160.1,160.09,3.66]
[1752329669342,3.4,160.12,160.11,3.66]
[1752329669646,187.2,160.13,160.11,3.66]
[1752329669840,190.6,160.13,160.11,3.66]
[1752329670045,190.6,160.13,160.12,3.66]
[1752329670244,187.2,160.13,160.1,0.04761968]
[1752329670541,3.4,160.11,160.1,0.04761968]
[1752329671146,3.4,160.11,160.1,3.70761968]
[1752329671547,3.4,160.11,160.1,0.04761968]
[1752329671747,9.6435,160.11,160.1,0.04761968]
[1752329672048,190.74,160.11,160.1,3.70761968]
[1752329674050,3.4,160.11,160.1,3.70761968]
[1752329674251,187.3,160.13,160.1,0.04761968]
[1752329674444,3.4,160.12,160.11,9.9035]
[1752329674838,190.6,160.14,160.1,0.04761968]
[1752329675044,3.4,160.14,160.12,6.71784241]
[1752329675253,3.4,160.15,160.14,3.66]
[1752329675745,3.4,160.17,160.14,6.71523366]
[1752329675945,3.4,160.17,160.14,3.05523366]
[1752329676348,3.4,160.23,160.17,3.66]
[1752329676648,3.4,160.25,160.21,3.66]
[1752329676949,3.4,160.24,160.21,3.66]
[1752329677146,3.4,160.26,160.21,3.70606887]
[1752329677350,6.2378,160.26,160.22,6.2389]
[1752329677544,3.4,160.24,160.23,3.66]
[1752329677745,3.4,160.24,160.21,3.70606887]
[1752329678052,9.6387,160.24,160.21,3.70606887]
[1752329678354,3.4,160.22,160.21,3.70606887]
[1752329678747,3.4,160.22,160.21,0.04606887]
[1752329679150,9.6392,160.22,160.21,0.04606887]
[1752329679442,3.4,160.22,160.21,0.04606887]
[1752329681854,3.4,160.22,160.17,3.66]
[1752329682046,3.4,160.22,160.18,3.66]
[1752329683259,6.2399,160.21,160.18,3.66]
[1752329683457,3.4,160.2,160.18,3.66]
[1752329683658,3.4,160.19,160.18,3.66]
[1752329687352,6.2399,160.21,160.18,3.66]
[1752329687549,3.49,160.19,160.18,3.66]
[1752329688052,3.49,160.21,160.19,3.38]
[1752329688357,0.0446513,160.22,160.2,3.38]
[1752329688665,3.49,160.2,160.19,3.38]
[1752329689255,3.49,160.21,160.18,3.38]
[1752329689460,3.49,160.2,160.19,3.38]
[1752329690861,0.03987902,160.21,160.19,9.6204]
[1752329691055,3.52987902,160.21,160.2,3.38]
[1752329691250,0.03987902,160.21,160.2,3.38]
[1752329691964,0.03987902,160.21,160.2,9.62]
[1752329693958,3.05523366,160.29,160.24,3.38]
[1752329694156,3.49,160.29,160.26,3.38]
[1752329694355,6.2356,160.32,160.26,3.38]
[1752329694553,6.2356,160.32,160.27,3.05523366]
[1752329694753,3.49,160.3,160.29,3.38]
[1752329695158,3.49,160.3,160.29,9.6165]
[1752329695360,3.05523366,160.35,160.28,0.04622742]
[1752329695557,3.49,160.31,160.3,3.38]
[1752329695753,539.24,160.38,160.3,3.38]
[1752329695954,3.49,160.38,160.28,0.04622742]
[1752329696161,3.49,160.38,160.32,3.38]
[1752329697062,3.49,160.36,160.33,3.38]
[1752329697967,3.49,160.37,160.35,3.38]
[1752329698160,3.49,160.37,160.33,3.38]
[1752329698756,3.49,160.42,160.36,3.38]
[1752329698961,3.49,160.39,160.35,3.38]
[1752329699161,3.49,160.39,160.33,3.38]
[1752329699362,9.28843366,160.38,160.33,3.38]
[1752329699562,3.49,160.37,160.35,0.04549412]
[1752329700263,12.77903366,160.36,160.35,0.04549412]
[1752329700456,205.68,160.42,160.29,3.38]
[1752329700457,3.49,160.35,160.29,3.38]
[1752329700655,6.2345,160.34,160.3,6.236]
[1752329700859,3.49,160.33,160.29,3.38]
[1752329701059,3.49,160.31,160.27,3.38]
[1752329701770,3.49,160.31,160.25,6.2379]
[1752329701771,3.53486327,160.31,160.25,9.6179]
[1752329702161,6.2363,160.3,160.25,6.2379]
[1752329702365,3.49,160.28,160.25,6.2379]
[1752329702566,3.49,160.28,160.27,3.38]
[1752329702767,6.2363,160.3,160.27,3.38]
[1752329702968,6.2363,160.3,160.17,5.09753875]
[1752329702969,0.04486327,160.31,160.28,8.46582068]
[1752329703168,0.04486327,160.31,160.29,3.38]
[1752329703372,3.49,160.33,160.29,3.38]
[1752329703870,0.04614421,160.32,160.29,3.38]
[1752329704168,0.04614421,160.32,160.31,3.38]
[1752329704369,3.53614421,160.32,160.31,3.38]
[1752329705165,3.53614421,160.32,160.29,6.2362]
[1752329705373,3.53614421,160.32,160.18,6.84377003]
[1752329705374,3.49,160.31,160.25,3.38]
[1752329705871,3.49,160.29,160.26,3.38]
[1752329706172,3.49,160.28,160.25,6.2377]
[1752329706464,3.49,160.29,160.27,3.38]
[1752329706672,3.49,160.28,160.27,3.38]
[1752329707574,3.49,160.28,160.23,3.38]
[1752329707765,3.49,160.28,160.24,3.38]
[1752329708273,3.49,160.26,160.23,3.38]
[1752329708470,3.49,160.25,160.23,3.38]
[1752329708875,3.49,160.25,160.23,9.6188]
[1752329709171,6.2375,160.27,160.23,9.6188]
[1752329709371,3.49,160.24,160.23,9.6188]
[1752329710365,3.49,160.24,160.23,3.38]
[1752329710570,6.2376,160.27,160.22,6.2391]
[1752329710771,3.49,160.23,160.22,9.6191]
[1752329711071,5.13167769,160.28,160.21,3.38]
[1752329711072,3.49,160.22,160.21,3.38]
[1752329711265,5.08582068,160.26,160.21,3.38]
[1752329711462,0.0412317,160.23,160.19,3.38]
[1752329711867,3.49,160.25,160.19,3.38]
[1752329712175,0.04261684,160.23,160.22,9.6192]
[1752329712771,3.53261684,160.23,160.22,3.38]
[1752329713169,0.04261684,160.23,160.22,3.38]
[1752329713374,0.04261684,160.23,160.22,9.6192]
[1752329717679,3.51261684,160.23,160.22,9.6192]
[1752329720176,0.04261684,160.23,160.22,9.6192]
[1752329721374,0.04261684,160.23,160.22,3.38]
[1752329721568,3.51261684,160.23,160.22,3.38]
[1752329722173,3.51261684,160.23,160.22,9.6192]
[1752329722769,0.04261684,160.23,160.22,9.6192]
[1752329728076,3.51261684,160.23,160.22,9.6192]
[1752329729078,0.04261684,160.23,160.22,9.6192]
[1752329729480,1.684e-05,160.23,160.22,9.6192]
[1752329730384,1.684e-05,160.23,160.22,14.76699405]
[1752329732887,3.47001684,160.23,160.22,9.6192]
[1752329749398,3.47001684,160.23,160.22,14.76699405]
[1752329749591,1.684e-05,160.23,160.22,11.38699405]
[1752329749794,1.684e-05,160.23,160.22,6.2392]
[1752329749990,1.684e-05,160.23,160.22,13.08297003]
[1752329750192,1.684e-05,160.23,160.22,6.2392]
[1752329751901,1.684e-05,160.23,160.22,9.6392]
[1752329752100,1.684e-05,160.23,160.21,9.67887073]
[1752329752301,1.684e-05,160.23,160.22,3.4]
[1752329752702,1.684e-05,160.23,160.22,6.2392]
[1752329753703,3.47001684,160.23,160.22,6.2392]
[1752329753905,3.47001684,160.23,160.22,9.6392]
[1752329754400,1.684e-05,160.23,160.22,6.2392]
[1752329755107,3.47001684,160.23,160.22,6.2392]
[1752329755606,1.684e-05,160.23,160.22,8.59616264]
[1752329756904,1.684e-05,160.23,160.22,14.83536264]
[1752329757299,1.684e-05,160.23,160.22,8.59616264]
[1752329757500,3.47001684,160.23,160.21,5.23553337]
[1752329757698,3.47001684,160.23,160.21,8.63553337]
[1752329757903,3.47001684,160.23,160.21,3.43937073]
[1752329758205,3.47001684,160.23,160.21,0.03937073]
[1752329759205,1.684e-05,160.23,160.21,0.03937073]
[1752329760008,3.47,160.22,160.21,3.43937073]
[1752329762311,9.7092,160.22,160.21,3.43937073]
[1752329762611,9.7092,160.22,160.21,0.03937073]
[1752329763011,9.7092,160.22,160.18,6.2405]
[1752329763012,3.47,160.21,160.18,3.4]
[1752329763210,3.47,160.21,160.19,3.4]
[1752329764612,9.7097,160.21,160.19,3.4]
[1752329764911,3.47,160.2,160.19,3.4]
[1752329766715,3.47,160.2,160.19,8.59616264]
[1752329766916,1.684e-05,160.23,160.2,3.4]
[1752329768112,1.684e-05,160.23,160.2,11.43576264]
[1752329768415,3.47001684,160.23,160.21,3.4]
[1752329768614,9.70901684,160.23,160.21,3.4]
[1752329768819,3.47,160.22,160.21,3.4]
[1752329769118,3.47,160.22,160.19,3.4]
[1752329769322,3.47,160.22,160.18,3.4]
[1752329769618,3.47,160.22,160.19,3.4]
[1752329770617,3.47,160.22,160.17,3.4]
[1752329770819,3.47,160.2,160.17,3.4]
[1752329771208,9.7107,160.18,160.17,3.4]
[1752329771909,3.47,160.16,160.15,8.59616264]
[1752329772116,3.47,160.16,160.15,5.19616264]
[1752329772320,3.47,160.16,160.14,5.19616264]
[1752329772520,6.2423,160.14,160.13,3.4]
[1752329772821,9.7123,160.14,160.13,3.4]
[1752329773322,6.243,160.13,160.12,5.19616264]
[1752329773614,3.47,160.14,160.11,5.19616264]
[1752329773816,3.47,160.14,160.11,8.59616264]
[1752329774215,3.47,160.14,160.11,3.4]
[1752329774515,9.7131,160.12,160.11,3.4]
[1752329774819,3.47,160.12,160.1,3.59]
[1752329775122,6.2443,160.09,160.08,8.78616264]
[1752329775422,6.2443,160.09,160.08,3.59]
[1752329775609,9.5543,160.09,160.08,3.59]
[1752329777217,6.245,160.07,160.06,5.19616264]
[1752329777424,9.555,160.07,160.06,3.59]
[1752329777922,9.5557,160.06,160.04,3.59]
[1752329778125,3.31,160.06,160.04,3.59]
[1752329778514,6.2457,160.06,160.04,3.59]
[1752329778818,0.04046115,160.07,160.04,3.59]
[1752329779424,3.35046115,160.07,160.04,3.59]
[1752329779620,0.04046115,160.07,160.04,3.59]
[1752329779921,3.31,160.05,160.02,3.59]
[1752329780327,3.31,160.05,160.0,5.19616264]
[1752329780328,3.05226345,160.05,160.0,5.19616264]
[1752329780520,3.31,160.03,159.99,3.59]
[1752329782019,3.31,160.02,159.99,3.59]
[1752329783430,6.2474,160.01,159.99,3.59]
[1752329784432,6.2478,160.0,159.99,3.59]
[1752329784633,9.5578,160.0,159.99,3.59]
[1752329784833,6.2486,159.98,159.92,5.19616264]
[1752329785030,3.31,159.99,159.98,3.59]
[1752329785738,9.5584,159.99,159.98,3.59]
[1752329786437,9.59794378,160.0,159.98,3.59]
[1752329786638,3.34984378,160.0,159.92,189.59226345]
[1752329786834,3.34984378,160.0,159.97,3.59]
[1752329787038,9.5582,159.99,159.98,3.59]
[1752329787434,6.2482,159.99,159.98,3.59]
[1752329787736,9.5582,159.99,159.98,3.59]
[1752329788527,3.31,159.97,159.92,3.59]
[1752329788933,3.31,159.98,159.92,3.59]
[1752329789135,3.31,159.96,159.93,3.59]
[1752329789335,3.352486,159.96,159.93,3.59]
[1752329790740,3.31,159.94,159.93,3.59]
[1752329790941,0.042486,159.96,159.93,6.64226345]
[1752329791132,0.042486,159.96,159.95,6.64226345]
[1752329793238,9.5578,160.0,159.95,6.64226345]
[1752329793438,3.31,160.0,159.96,3.59]
[1752329793839,6.2482,159.99,159.96,3.59]
[1752329794143,6.2482,159.99,159.98,3.59]
[1752329796947,6.2491,159.97,159.94,3.09448207]
[1752329797147,3.31,160.01,159.95,3.59]
[1752329798346,6.2493,159.96,159.95,3.59]
[1752329798849,9.5593,159.96,159.95,3.59]
[1752329799349,9.5597,159.95,159.94,3.63221862]
[1752329799547,6.2497,159.95,159.94,3.63221862]
[1752329799849,6.2495,159.96,159.94,3.59]
[1752329800940,3.31,160.01,159.95,3.59]
[1752329801139,3.31,160.01,159.96,3.05226345]
[1752329801338,3.31,160.0,159.97,3.59]
[1752329801745,3.31,160.0,159.97,3.63024059]
[1752329801940,9.5581,160.0,159.97,3.63024059]
[1752329802550,9.5582,159.99,159.97,3.63024059]
[1752329802952,3.31,160.03,159.99,3.59]
[1752329803145,3.05226345,160.08,159.97,0.04024059]
[1752329803146,3.31,160.05,160.02,3.59]
[1752329803550,6.2473,160.02,159.99,3.05226345]
[1752329803741,9.5573,160.02,160.01,3.59]
[1752329804250,9.5578,160.0,159.99,3.63181896]
[1752329804650,3.05226345,160.04,159.99,3.59]
[1752329805240,9.8376,160.01,159.98,0.03983049]
[1752329805440,3.59,160.01,160.0,3.45]
[1752329805641,3.59,160.05,159.98,0.03983049]
[1752329805845,3.59,160.05,160.01,3.45]
[1752329806149,6.2472,160.02,160.01,3.45]
[1752329806349,9.8372,160.02,160.01,3.49084597]
[1752329808548,9.8372,160.02,160.01,0.04084597]
[1752329813358,3.59,159.98,159.97,3.45]
[1752329816156,0.03934808,159.99,159.97,9.6989]
[1752329816359,3.62934808,159.99,159.98,3.45]
[1752329818256,0.03934808,159.99,159.98,3.45]
[1752329819050,3.62934808,159.99,159.98,3.45]
[1752329819454,0.03934808,159.99,159.98,9.6985]
[1752329819653,0.03934808,159.99,159.98,3.45]
[1752329820264,3.62934808,159.99,159.96,5.19616264]
[1752329820558,3.59,159.97,159.94,3.45]
[1752329820751,3.59,159.95,159.92,3.45]
[1752329821161,6.2504,159.94,159.92,3.45]
[1752329821362,3.59,159.93,159.91,3.45]
[1752329821663,3.62943837,159.95,159.91,5.19616264]
[1752329821860,3.59,159.93,159.92,3.45]
[1752329822259,3.59,159.93,159.89,5.19616264]
[1752329822455,3.59,159.93,159.91,3.45]
[1752329822663,3.59,159.93,159.9,3.45]
[1752329823168,6.251,159.92,159.9,3.45]
[1752329823362,3.59,159.91,159.9,3.45]
[1752329825157,6.2513,159.91,159.89,5.19616264]
[1752329825358,3.59,159.9,159.89,8.64616264]